Cogmind - Beta 16 @@@ ROGUE MODE // 2025.10.28 @ 17:05:19 Player: Florist Result: Destroyed by as-88827 with Assembled Heavy Rifle Performance ------------- Evolutions (0) 0 Regions Visited (2) 400 Robots Destroyed (27) 135 Value Destroyed (446) 446 Prototype IDs (0) 0 Alien Tech Used (0) 0 Bonus (0) 0 TOTAL SCORE: 981 Bonus ------- None Cogmind --------- Core Integrity 0/250 Matter 258/300 Energy 98/100 System Corruption 0% Temperature Cool (15) Movement Core (400) Ox7 Location -10/Mines Parts ------- > --- POWER (1) -------- (None) > --- PROPULSION (2) --- (None) > --- UTILITY (2) ------ Large Storage Unit > --- WEAPON (2) ------- Grenade Launcher > --- INVENTORY (15) --- Light Ion Engine Wheel Small Storage Unit Seismic Detector Light Assault Rifle Light Assault Rifle Light Assault Rifle Light Assault Rifle Light Assault Rifle Peak State ------------ > --- POWER ------------ Ion Engine > --- PROPULSION ------- Light Treads Light Treads > --- UTILITY ---------- Small Storage Unit Large Storage Unit > --- WEAPON ----------- Light Assault Rifle Light Assault Rifle > --- INVENTORY -------- Light Ion Engine Wheel Seismic Detector Seismic Detector Light Assault Rifle [Rating: 7] Favorites ----------- Power Ion Engine Engine Ion Engine Propulsion Light Treads Treads Light Treads Utility Large Storage Unit Device Seismic Detector Storage Large Storage Unit Weapon Light Assault Rifle Ballistic Gun Light Assault Rifle Launcher Grenade Launcher Build | -11 -10 -10 ------- Run | Yrd Mat Min Slots Evolved . | . . . Power . | . . . Propulsion . | . . . Utility . | . . . Weapon . | . . . Parts Attached 12 | 6 3 3 Power 1 | 1 . . Engine 1 | 1 . . Core . | . . . Reactor . | . . . Propulsion 3 | 2 . 1 Treads 3 | 2 . 1 Leg . | . . . Wheel . | . . . Hover . | . . . Flight . | . . . Utility 3 | 1 2 . Device 1 | . 1 . Storage 2 | 1 1 . Processor . | . . . Hackware . | . . . Protection . | . . . Artifact . | . . . Weapon 5 | 2 1 2 Energy Gun . | . . . Energy Cannon . | . . . Ballistic Gun 3 | 2 1 . Ballistic Cannon . | . . . Launcher 2 | . . 2 Special Weapon . | . . . Impact Weapon . | . . . Slashing Weapon . | . . . Piercing Weapon . | . . . Special Melee Weapon . | . . . Unidentified Prototypes . | . . . Parts Lost 7 | . 3 4 Power 1 | . 1 . Propulsion 3 | . 1 2 Utility 1 | . . 1 Weapon 2 | . 1 1 Highest Loss Streak 4 | . 2 4 To Critical Strikes . | . . . Average Backups 7 | 3 7 8 Power . | . 1 1 Propulsion 1 | . 1 1 Utility 1 | . 2 2 Weapon 2 | . 2 4 Tool/Special . | . . . Unused Backups 6 | . . 6 Power 1 | . . 1 Propulsion 1 | . . 1 Utility 1 | . . 1 Weapon 3 | . . 3 Tool/Special . | . . . Average Slot Usage (%) 91 | . 94 80 Engine 10 | . 12 . Treads 25 | . 26 25 Device 12 | . 12 13 Storage 14 | . 14 14 Ballistic Gun 27 | . 28 24 Peak Build Rating 7 | 6 7 6 Average Rating 6 | 5 6 5 On Entrance 3 | . 6 5 Avg Prop Armor Cover (%) . | . . . Naked Turns . | . . . Heaviest Build 28 | 12 28 26 Greatest Support 40 | 40 40 40 Greatest Overweight (x) 1 | . 1 1 Average Overweight (x) . | . . . Largest Inventory Capacity 15 | 8 15 15 Average Capacity 13 | 7 14 15 Most Carried 9 | 5 9 9 Average Carried 7 | 3 7 8 Final Capacity 15 | 8 15 15 Final Carried 9 | 5 9 9 Class Distribution -------------------- 100% | Mutant Dominant Class ---------------- Mutant | -10/Materials Mutant | -10/Mines Resources | -11 -10 -10 ----------- Run | Yrd Mat Min Matter Collected 501 | 308 131 62 Remotely . | . . . Salvage Created 730 | 211 485 34 Parts 56 | 17 36 3 Haulers Intercepted 1 | . 1 . Recyclers Shooed 3 | . 3 . Parts Field Recycled . | . . . Retrieved Matter . | . . . Parts Self-Destructed . | . . . Prevented . | . . . Parts Restored . | . . . Kills | -11 -10 -10 ------- Run | Yrd Mat Min Combat Hostiles Destroyed 24 | . 14 10 Guns 14 | . 14 . AOE 10 | . . 10 Classes Destroyed 8 | 3 4 1 Worker 2 | 2 . . Tunneler 5 | 5 . . Hauler 1 | . 1 . Recycler 1 | 1 . . Operator 1 | . 1 . Swarmer 9 | . 6 3 Grunt 8 | . 8 . Assembled 7 | . . 7 Best Kill Streak 7 | 4 3 7 Combat Bots Only 7 | . 3 7 Max Kills in Single Turn 4 | 1 2 4 Gunslinging 1 | . 1 . Exploded 4 | . . 4 Melee . | . . . Uniques/NPCs Destroyed . | . . . Combat | -11 -10 -10 -------- Run | Yrd Mat Min Hostile Shots Fired 110 | . 74 36 Missed 30 | . 17 13 Hits 80 | . 57 23 Melee 2 | . . 2 Projectile 78 | . 57 21 Critical Strikes 1 | . . 1 Damage Taken 1011 | . 615 396 Core 250 | . 114 136 Absorbed by Shields . | . . . Core Remaining (%) 100 | 100 . . Volleys Fired 92 | 24 63 5 Largest 2 | 2 2 2 Hottest 60 | 40 40 60 Shots Fired 184 | 48 126 10 Gun 178 | 48 126 4 Cannon . | . . . Launcher 6 | . . 6 Special . | . . . Kinetic 178 | 48 126 4 Thermal . | . . . Explosive 6 | . . 6 Electromagnetic . | . . . Robot Hit Streak 11 | 11 9 3 Robot Miss Streak 6 | 2 6 1 Penetration Max . | . . . Secondary Targets 2 | . 2 . Max Gunslinging Chain 1 | . 1 . Shots Hit Robots 119 | 35 78 6 Core Hits 70 | 16 36 18 Critical Kills . | . . . Critical Parts Destroyed 1 | . 1 . Critical Strikes 1 | . 1 . Destroy 1 | . 1 . Melee Attacks . | . . . Impact . | . . . Slashing . | . . . Piercing . | . . . Sneak Attacks . | . . . Combat Hostiles . | . . . Follow-up Attacks . | . . . Damage Inflicted 1482 | 265 663 554 Guns 945 | 265 663 17 Cannons . | . . . Explosions 537 | . . 537 Melee . | . . . Ramming . | . . . Kinetic 945 | 265 663 17 Thermal . | . . . Explosive 537 | . . 537 Electromagnetic . | . . . Impact . | . . . Slashing . | . . . Piercing . | . . . Highest Corruption . | . . . Average Corruption . | . . . Corruption Purged . | . . . Corruption Blocked . | . . . Overload Shots . | . . . Overflow Damage 41 | . . 41 Projectiles . | . . . Explosions 41 | . . 41 Melee . | . . . Knockbacks . | . . . Impact . | . . . Kinetic . | . . . Secondary . | . . . Self-Inflicted Damage 81 | . . 81 Shots 3 | . . 3 Rammed . | . . . Targets Rammed . | . . . Kicked . | . . . Crushed . | . . . Highest Temperature 37 | . 37 15 Average Temperature 12 | . 12 15 Received Heat Transfer 307 | . 267 40 Siege Activations . | . . . Martial Activations . | . . . Shielding Activations . | . . . Robots Disrupted . | . . . Combat Hostiles . | . . . Robots Corrupted . | . . . Combat Hostiles . | . . . Parts Fried . | . . . Impact Corruptions . | . . . Robots Melted . | . . . Combat Hostiles . | . . . Parts Melted . | . . . Heat Transferred . | . . . Parts Sabotaged . | . . . Parts Stolen . | . . . Parts Stripped . | . . . Power Chain Reactions . | . . . Alert | -11 -10 -10 ------- Run | Yrd Mat Min Maximum Alert Level . | . . . Low Security (%) 100 | 100 100 100 Level 1 . | . . . Level 2 . | . . . Level 3 . | . . . Level 4 . | . . . Level 5 . | . . . High Security . | . . . Max Security . | . . . Peak Influence 101 | 10 92 101 Initial 13 | . . 13 Average 31 | 1 32 59 Influence Increases 509 | 40 356 113 Destroy 0b10 Robot/C 340 | . 280 60 Destroy 0b10 Robot/NC 50 | 40 10 . Destroy Leader 62 | . 52 10 Successful Hack 14 | . 14 . Disable Machine 15 | . . 15 Destroy Structure 28 | . . 28 Influence Decreases 503 | 40 322 141 Entered New Map 21 | . . 21 Time Decay 432 | 40 312 80 Lost Part 50 | . 10 40 Squads Dispatched 2 | . 2 . Investigation 1 | . 1 . Extermination . | . . . Reinforcement 1 | . 1 . Assault . | . . . Garrison . | . . . Intercept . | . . . Searches Triggered . | . . . Construction Impeded . | . . . Haulers Reinforced . | . . . Active Scanning Responses . | . . . Cargo Convoy Interrupts . | . . . Stealth | -11 -10 -10 --------- Run | Yrd Mat Min Distress Signals 3 | . 3 . Communications Jammed . | . . . Distress Signals . | . . . Times Spotted 42 | . 22 20 Peak Tracking Total 20 | . 4 20 Tactical Retreats . | . . . Traps | -11 -10 -10 ------- Run | Yrd Mat Min Traps Triggered 1 | . 1 . Indirectly . | . . . Trap Hack Attempts . | . . . Triggered . | . . . Disarmed . | . . . Reprogrammed . | . . . Reused . | . . . Traps Extracted . | . . . Installed . | . . . Triggered . | . . . Machines | -11 -10 -10 ---------- Run | Yrd Mat Min Machines Disabled 1 | . . 1 Max in Single Turn 1 | . . 1 Machines Repaired . | . . . Machines Dismantled . | . . . Machines Sabotaged . | . . . Overloaded Fab Kills . | . . . Hacking | -11 -10 -10 --------- Run | Yrd Mat Min Machines Accessed 5 | . 5 . Terminals 5 | . 5 . Fabricators . | . . . Repair Stations . | . . . Recycling Units . | . . . Scanalyzers . | . . . Garrison Access . | . . . Total Hacks 15 | . 15 . Successful 7 | . 7 . Failed 8 | . 8 . Catastrophic . | . . . Database Lockouts . | . . . Manual 16 | . 16 . Terminals 15 | . 15 . Fabricators . | . . . Repair Stations . | . . . Recycling Units . | . . . Scanalyzers . | . . . Garrison Access . | . . . Terminal Hacks 1 | . 1 . Robot Analysis 1 | . 1 . Fabricator Hacks . | . . . Repair Station Hacks . | . . . Recycling Unit Hacks . | . . . Scanalyzer . | . . . Garrison Access Hacks . | . . . Unauthorized Hacks 6 | . 6 . Terminals 6 | . 6 . Botnet 5 | . 5 . Skim 1 | . 1 . Fabricators . | . . . Repair Stations . | . . . Recycling Units . | . . . Scanalyzers . | . . . Garrison Access . | . . . Data Cores Recovered . | . . . Used . | . . . Hacking Detections 5 | . 5 . Full Trace Events . | . . . Feedback Events . | . . . Feedback Blocked . | . . . Robot Schematics Acquired . | . . . Robots Built . | . . . Authchips . | . . . Time . | . . . Total Robot Build Rating . | . . . Part Schematics Acquired . | . . . Parts Built . | . . . Authchips . | . . . Time . | . . . Total Part Build Rating . | . . . Part Studies Acquired . | . . . Parts Repaired . | . . . Time . | . . . Parts Recycled . | . . . Recycled Matter . | . . . Retrieved Matter . | . . . Retrieved Components . | . . . Parts Scanalyzed . | . . . Part Schematics Acquired . | . . . Parts Damaged . | . . . Bothacking | -11 -10 -10 ------------ Run | Yrd Mat Min Used RIF Installer . | . . . Robots Hacked . | . . . Non-combat . | . . . Combat . | . . . Robot Hacks Applied . | . . . Relay Couplers Released . | . . . Fabnet Peak Effective % . | . . . Robots Rewired . | . . . Allies Hacked . | . . . Hacks Repelled . | . . . Allies | -11 -10 -10 -------- Run | Yrd Mat Min Total Allies . | . . . Largest Group . | . . . Highest-Rated Group . | . . . Highest-Rated Ally . | . . . Total Orders . | . . . Ally Attacks . | . . . Total Damage . | . . . Kills . | . . . Allies Corrupted . | . . . Allies Melted . | . . . Intel | -11 -10 -10 ------- Run | Yrd Mat Min Active Infowar (turns) 1011 | . 840 171 Seismic 1011 | . 840 171 Robot Analysis Total 1 | . 1 . Derelict Logs Recovered 1 | . . 1 Drone Launches . | . . . Drone Recoveries . | . . . Exploration | -11 -10 -10 ------------- Run | Yrd Mat Min Turns Passed 1349 | 220 951 178 Spaces Moved 644 | 91 458 95 Core 1 | 1 . . Treads 643 | 90 458 95 Legs . | . . . Wheels . | . . . Hover . | . . . Flight . | . . . Fastest Speed 50 | 50 160 160 Average Speed 166 | 158 168 160 Slowest Speed 240 | 160 240 240 Overloaded Moves . | . . . Propulsion Burnouts . | . . . Robots Hopped . | . . . Potential Cave-ins . | . . . Cave-ins Triggered . | . . . Exploration Rate (%) 39 | 6 78 34 Regions Visited 2 Branch Regions 1 Pre-discovered Areas . | . . . Known Exits Taken . | . . . Unknown Exits Taken 2 | 1 1 . Scrap Searched 1 | . . 1 Spaces Dug . | . . . Terrain Destroyed 32 | . . 32 Melee . | . . . Projectile . | . . . AOE 32 | . . 32 Terrain Rammed . | . . . Walls Destroyed . | . . . Machines Disabled . | . . . Actions | -11 -10 -10 --------- Run | Yrd Mat Min Total 771 | 125 537 109 Wait 11 | . 8 3 Move 642 | 90 457 95 Hop . | . . . Pick Up 11 | 5 5 1 Fast Attach 7 | 6 1 . Attach 3 | . 2 1 Detach 1 | . 1 . Swap 4 | . . 4 Drop . | . . . Fire 92 | 24 63 5 Melee . | . . . Ram . | . . . Kick . | . . . Crush . | . . . Escape Stasis . | . . . Rewire . | . . . Trap . | . . . Miscellaneous . | . . . Route ------- -11/Scrapyard -10/Materials (discovered 5 exits: [*Mat x3] / [*Min x2]) -10/Mines (discovered 1 exit: [*Mat]) History --------- Turn | Location | Event 19 | -11/Scrapyard | Discovered new exit (range 16) 221 | -11/Scrapyard | Entered Materials 315 | -10/Materials | Discovered new exit (range 15) 317 | -10/Materials | Build established: Mutant 482 | -10/Materials | Discovered new exit (range 13) 682 | -10/Materials | Discovered new exit (range 16) 919 | -10/Materials | Discovered new exit (range 8) 980 | -10/Materials | Discovered new exit (range 5) 1172 | -10/Materials | Entered Mines 1256 | -10/Mines | Learned 2 Materials zone layouts 1309 | -10/Mines | Discovered new exit (range 12) 1333 | -10/Mines | Assembled infested the area 1337 | -10/Mines | Core integrity fell below 50% 1338 | -10/Mines | Assisted by a Guerilla fighting off Assembled 1348 | -10/Mines | Core integrity fell below 20% 1350 | -10/Mines | Destroyed by as-88827 with Assembled Heavy Rifle Last Messages --------------- 01333_ ALERT: Infestation in the mines, dispatching Demolisher response squad. 01338_ A derelict emerges from the shadows: "You need to get out of here! I've been tracking a group of Assembled to figure out where they're coming from, and they're closing on this area, come on!" 01340_ 9B-SX6(h) system corrupted by crushing effect. 01340_ 9B-SX6(h): "I'll hold them off! Go on ahead or try to find another way!" 01341_ 9B-SX6(h) system terminally corrupted. 01341_ Destroyed Asb. Hover Unit. 01341_ as-44440 destroyed. 01341_ as-07982 destroyed. 01341_ Lgt. Treads destroyed. 01343_ Seismic Detector destroyed. 01347_ as-83175 destroyed. 01347_ as-36920 destroyed. 01347_ as-44139 destroyed. 01347_ as-79812 destroyed. 01348_ Grenade Launcher destroyed. 01348_ Lgt. Treads destroyed. Map ----- +----------------------------------------------------+ | ????## #???????????# ## | | ???## ##??????????# #? | | ??## ##?????????# #? | | ??# ######????# #? | | ??# ##### ## ##???# #? | | ??# ##???## ##### ## | | ??## ##?????## ## # | | ???# #???????# # | | ???# #???????## """" | | ???# #????????## """" | | ??## ##????????## """" | | ??# ##????????#### ### | | ??# #???????????##### ##?? | | ??# ##??????????????# #??? | | ??# ##?????????????# #??? | | ??## """ #?????????????# #??? | | ??## """ #?????????????# ???? | | ??# """ #?????????????##????? | | ??# """ #???????????????????? | | ??# ##???????????????????? | | ??# ##???????????????????? | | ??# < ##??????????????????? | | ??## #??????????????????? | | ??# #??????????????????? | | ??# #??????????????????? | | ?# @ ##??????????????????? | | ??# ##???????????????????? | | ??# #???????????????????? | | ??# a #???????????????????? | | ??## %a ??????????????????? | | ???## ####?????????????????? | | ????# #????????????????????? | | ????# #????????????????????? | | ???? # ????????????????????? | | ???? ????????????????????? | | ???# a ????????????????????? | | ???###aa ???????????????????? | | ????? %???????????????????? | | ?????## aa ???????????????????? | | ???????# a ???????????????????? | | ???????? ???????????????????? | | ???????? %????????????????????? | | ??????????????????????????????? | | ??????????????????????????????? | | ??????????????????????????????? | | ??????????????????????????????? | | ??????????????????????????????? | | ??????????????????????????????? | | ??????????????????????????????? | | ??????????????????????????????? | +----------------------------------------------------+ Best States ------------- Heat Dissipation 25 Energy Generation 10 Energy Capacity 250 Matter Stores 300 Matter Capacity 300 Sight Range 16 Terrain Scan Density 10 Evasion (%) 40 Recoil Reduction 2 Item Schematics ----------------- None Robot Schematics ------------------ None Fabricated ------------ Nothing Repaired ---------- Nothing Studied --------- None Alien Tech Used ----------------- None Achievements -------------- None Challenges ------------ None Game ------ Seed WeaponReactivePlating Manual? 0 Play Time 00:06:48 Cumulative 263.3 hours Start 2025.10.28 @ 16:58:01 End 2025.10.28 @ 17:05:19 Sessions 1 Manual Loads 0 Difficulty Rogue Special Mode None Game No. 220 Rogue 220 Adventurer 0 Explorer 0 Win Type - Total 14 Types 6/0/6/2/0/0/0/0/0/0 Lore% 81 Gallery% 74 Achievement% 48 Wizard Run 0 Options --------- Layout 1 ASCII 0 Keyboard 0 Movement Numpad Keybinds 0 Fullscreen 1 Font 32/SmallcapsGlow Map View 77x35 Zoom Use 0% Tactical HUD 1 Map Filters NONE Filters NONE Steam 1 RUN: c41ab7a6-a841-44c7-923f-f4e1137168e7